Workbook

Sheet Forudsætninger

Sheet Eksempel

Sheet Beregning
B1: Dimensionering af gasledninger op til 100 mbar
B4: Forudsætninger
B6: Vælg gastype | D6: Naturgas | H6: Øvre brændværdi [kWh/m3n] | K6: =HLOOKUP(gasvalg,gasegenskaber,ROW()-ROW(gasvalg)+2,FALSE) -> 12.178 | M6: Tryktab til Gasfyr | O6: =F49+G49 ->  | P6: mBar
B7: Se under fanen "Forudsætninger" | H7: Massefylde [kg/m3n] | K7: =HLOOKUP(gasvalg,gasegenskaber,ROW()-ROW(gasvalg)+2,FALSE) -> 0.8261 | M7: Tryktab til Lej 1 | O7: =F49+H49+L49 ->  | P7: mBar
H8: Højdetrykændring [mbar/m] | K8: =HLOOKUP(gasvalg,gasegenskaber,ROW()-ROW(gasvalg)+4,FALSE) -> 0.04580324315 | M8: Tryktab til Lej 2 | O8: =F49+H49+I49+M49 ->  | P8: mBar
M9: Tryktab til Lej 3 | O9: =F49+H49+I49+J49+N49 ->  | P9: mBar
B10: Vælg rørtype | D10: Kobberrør | H10: Ækvivalent sandruhed K | K10: =IF(rørtypevalg="Brugerdefineret",K_bruger,VLOOKUP(rørtypevalg,Rørtypetabel,2,FALSE)) -> 0.005 | M10: Tryktab til Tør | O10: =F49+H49+I49+J49+K49 ->  | P10: mBar
B12: Brugerdefineret K | E12: (Indtast ækvivalent sandruhed)
B14: Tryktab
E16: Enhed | F16: Strækning
B17: Strækningsbetegnelse | F17: REG - A | G17: A-FYR | H17: A- B | I17: B-C | J17: C-D | K17: D- Tør | L17: B- Lej 1 | M17: C-Lej 2 | N17: D- Lej 3
B18: Belastning/indfyret effekt | E18: kW
B19: Gasføring | E19: m3n/h | F19: =IF(ISNUMBER(F18),F18/$K$6,"") ->  | H19: =IF(ISNUMBER(H18),H18/$K$6,"") -> 
B20: Højdeforskel | E20: m
B21: Tryktab p.g.a. højdeforskel | E21: mbar | F21: =IF(ISNUMBER(F20),-F20*$K$8,"") ->  | G21: =IF(ISNUMBER(G20),-G20*$K$8,"") -> 
B22: Rørlængde | E22: m
B23: Indvendig diameter | E23: mm
B24: Hastighed | E24: m/s | F24: =IFERROR(gashastighed(F23,F19),"") ->  | G24: =IFERROR(gashastighed(G23,G19),"") ->  | O24: =IFERROR(gashastighed(O23,O19),"") -> 
B25: Tryktab i rørledning | E25: mbar | F25: =IFERROR(tryktab(F22,"Lige rør",F23,$K$7,F19,$K$10),"") ->  | G25: =IFERROR(tryktab(G22,"Lige rør",G23,$K$7,G19,$K$10),"") -> 
B26: Komponenter
B27: Formindskelsesstykke | E27: Antal
B28: Etagebøjning | E28: Antal
B29: 90° vinkel | E29: Antal
B30: 45° vinkel | E30: Antal
B31: 90° bøjning | E31: Antal
B32: 45° bøjning | E32: Antal
B33: 90° T-stykke, gennemgang | E33: Antal
B34: 90° T-stykke, afbøjning | E34: Antal
B35: 90° rense-T | E35: Antal
B36: 90° T-stykke, modstrøm | E36: Antal
B37: T-bøjning, gennemgang | E37: Antal
B38: T-bøjning afbøjning | E38: Antal
B39: Rensebøjning | E39: Antal
B40: T-stykke, modstrøm | E40: Antal
B41: 90° kryds, gennemgang | E41: Antal
B42: 90° kryds, afbøjning | E42: Antal
B43: 90° rensekryds, gennemgang | E43: Antal
B44: 90° rensekryds, afbøjning | E44: Antal
B45: Hane (kuglehane) | E45: Antal
B46: Vinkelhane | E46: Antal
B47: Ventil | E47: Antal | O47: =F49+G49+H49+I49+J49+K49+L49+M49+N49+O49 -> 
B48: Tryktab i komponenter | E48: mbar | F48: =Kladde!F48 ->  | G48: =Kladde!G48 ->  | H48: =Kladde!H48 ->  | I48: =Kladde!I48 ->  | J48: =Kladde!J48 ->  | K48: =Kladde!K48 ->  | L48: =Kladde!L48 ->  | M48: =Kladde!M48 ->  | N48: =Kladde!N48 ->  | O48: =Kladde!O48 -> 
B49: Samlet tryktab | E49: mbar | F49: =IF(Kladde!F49<>0,Kladde!F49, "") ->  | G49: =IF(Kladde!G49<>0,Kladde!G49, "") ->  | H49: =IF(Kladde!H49<>0,Kladde!H49, "") ->  | I49: =IF(Kladde!I49<>0,Kladde!I49, "") ->  | J49: =IF(Kladde!J49<>0,Kladde!J49, "") ->  | K49: =IF(Kladde!K49<>0,Kladde!K49, "") ->  | L49: =IF(Kladde!L49<>0,Kladde!L49, "") ->  | M49: =IF(Kladde!M49<>0,Kladde!M49, "") ->  | N49: =IF(Kladde!N49<>0,Kladde!N49, "") ->  | O49: =IF(Kladde!O49<>0,Kladde!O49, "") -> 

Sheet Kladde (hidden)
B14: Tryktab
E16: Enhed | F16: Strækning
B17: Strækningsbetegnelse | F17: AB | G17: BC
B18: Belastning | E18: kW | F18: =Beregning!F18 -> 0 | G18: =Beregning!G18 -> 0 | H18: =Beregning!H18 -> 0 | I18: =Beregning!I18 -> 0 | J18: =Beregning!J18 -> 0 | K18: =Beregning!K18 -> 0 | L18: =Beregning!L18 -> 0 | M18: =Beregning!M18 -> 0 | N18: =Beregning!N18 -> 0 | O18: =Beregning!O18 -> 0
B19: Gasføring | E19: m3n/h | F19: =Beregning!F19 ->  | G19: =Beregning!G19 ->  | H19: =Beregning!H19 ->  | I19: =Beregning!I19 ->  | J19: =Beregning!J19 ->  | K19: =Beregning!K19 ->  | L19: =Beregning!L19 ->  | M19: =Beregning!M19 ->  | N19: =Beregning!N19 ->  | O19: =Beregning!O19 -> 
B20: Højdeforskel | E20: m | F20: =Beregning!F20 -> 0 | G20: =Beregning!G20 -> 0 | H20: =Beregning!H20 -> 0 | I20: =Beregning!I20 -> 0 | J20: =Beregning!J20 -> 0 | K20: =Beregning!K20 -> 0 | L20: =Beregning!L20 -> 0 | M20: =Beregning!M20 -> 0 | N20: =Beregning!N20 -> 0 | O20: =Beregning!O20 -> 0
B21: Tryktab fra højdeforskel | E21: mbar | F21: =Beregning!F21 ->  | G21: =Beregning!G21 ->  | H21: =Beregning!H21 ->  | I21: =Beregning!I21 ->  | J21: =Beregning!J21 ->  | K21: =Beregning!K21 ->  | L21: =Beregning!L21 ->  | M21: =Beregning!M21 ->  | N21: =Beregning!N21 ->  | O21: =Beregning!O21 -> 
B22: Rørlængde | E22: m | F22: =Beregning!F22 -> 0 | G22: =Beregning!G22 -> 0 | H22: =Beregning!H22 -> 0 | I22: =Beregning!I22 -> 0 | J22: =Beregning!J22 -> 0 | K22: =Beregning!K22 -> 0 | L22: =Beregning!L22 -> 0 | M22: =Beregning!M22 -> 0 | N22: =Beregning!N22 -> 0 | O22: =Beregning!O22 -> 0
B23: Diameter | E23: mm | F23: =Beregning!F23 -> 0 | G23: =Beregning!G23 -> 0 | H23: =Beregning!H23 -> 0 | I23: =Beregning!I23 -> 0 | J23: =Beregning!J23 -> 0 | K23: =Beregning!K23 -> 0 | L23: =Beregning!L23 -> 0 | M23: =Beregning!M23 -> 0 | N23: =Beregning!N23 -> 0 | O23: =Beregning!O23 -> 0
B24: Hastighed | E24: m/s | F24: =Beregning!F24 ->  | G24: =Beregning!G24 ->  | H24: =Beregning!H24 ->  | I24: =Beregning!I24 ->  | J24: =Beregning!J24 ->  | K24: =Beregning!K24 ->  | L24: =Beregning!L24 ->  | M24: =Beregning!M24 ->  | N24: =Beregning!N24 ->  | O24: =Beregning!O24 -> 
B25: Tryktab fra rør | E25: mbar | F25: =Beregning!F25 ->  | G25: =Beregning!G25 ->  | H25: =Beregning!H25 ->  | I25: =Beregning!I25 ->  | J25: =Beregning!J25 ->  | K25: =Beregning!K25 ->  | L25: =Beregning!L25 ->  | M25: =Beregning!M25 ->  | N25: =Beregning!N25 ->  | O25: =Beregning!O25 -> 
B26: Komponenter
B27: Formindskelsesstykke | E27: mbar | F27: =tryktab(Beregning!F27,$B27,F$23,Beregning!$K$7,F$19,Beregning!$K$10) ->  | G27: =tryktab(Beregning!G27,$B27,G$23,Beregning!$K$7,G$19,Beregning!$K$10) ->  | H27: =tryktab(Beregning!H27,$B27,H$23,Beregning!$K$7,H$19,Beregning!$K$10) ->  | I27: =tryktab(Beregning!I27,$B27,I$23,Beregning!$K$7,I$19,Beregning!$K$10) ->  | J27: =tryktab(Beregning!J27,$B27,J$23,Beregning!$K$7,J$19,Beregning!$K$10) ->  | K27: =tryktab(Beregning!K27,$B27,K$23,Beregning!$K$7,K$19,Beregning!$K$10) ->  | L27: =tryktab(Beregning!L27,$B27,L$23,Beregning!$K$7,L$19,Beregning!$K$10) ->  | M27: =tryktab(Beregning!M27,$B27,M$23,Beregning!$K$7,M$19,Beregning!$K$10) ->  | N27: =tryktab(Beregning!N27,$B27,N$23,Beregning!$K$7,N$19,Beregning!$K$10) ->  | O27: =tryktab(Beregning!O27,$B27,O$23,Beregning!$K$7,O$19,Beregning!$K$10) -> 
B28: Etagebøjning | E28: mbar | F28: =tryktab(Beregning!F28,$B28,F$23,Beregning!$K$7,F$19,Beregning!$K$10) ->  | G28: =tryktab(Beregning!G28,$B28,G$23,Beregning!$K$7,G$19,Beregning!$K$10) ->  | H28: =tryktab(Beregning!H28,$B28,H$23,Beregning!$K$7,H$19,Beregning!$K$10) ->  | I28: =tryktab(Beregning!I28,$B28,I$23,Beregning!$K$7,I$19,Beregning!$K$10) ->  | J28: =tryktab(Beregning!J28,$B28,J$23,Beregning!$K$7,J$19,Beregning!$K$10) ->  | K28: =tryktab(Beregning!K28,$B28,K$23,Beregning!$K$7,K$19,Beregning!$K$10) ->  | L28: =tryktab(Beregning!L28,$B28,L$23,Beregning!$K$7,L$19,Beregning!$K$10) ->  | M28: =tryktab(Beregning!M28,$B28,M$23,Beregning!$K$7,M$19,Beregning!$K$10) ->  | N28: =tryktab(Beregning!N28,$B28,N$23,Beregning!$K$7,N$19,Beregning!$K$10) ->  | O28: =tryktab(Beregning!O28,$B28,O$23,Beregning!$K$7,O$19,Beregning!$K$10) -> 
B29: 90° vinkel | E29: mbar | F29: =tryktab(Beregning!F29,$B29,F$23,Beregning!$K$7,F$19,Beregning!$K$10) ->  | G29: =tryktab(Beregning!G29,$B29,G$23,Beregning!$K$7,G$19,Beregning!$K$10) ->  | H29: =tryktab(Beregning!H29,$B29,H$23,Beregning!$K$7,H$19,Beregning!$K$10) ->  | I29: =tryktab(Beregning!I29,$B29,I$23,Beregning!$K$7,I$19,Beregning!$K$10) ->  | J29: =tryktab(Beregning!J29,$B29,J$23,Beregning!$K$7,J$19,Beregning!$K$10) ->  | K29: =tryktab(Beregning!K29,$B29,K$23,Beregning!$K$7,K$19,Beregning!$K$10) ->  | L29: =tryktab(Beregning!L29,$B29,L$23,Beregning!$K$7,L$19,Beregning!$K$10) ->  | M29: =tryktab(Beregning!M29,$B29,M$23,Beregning!$K$7,M$19,Beregning!$K$10) ->  | N29: =tryktab(Beregning!N29,$B29,N$23,Beregning!$K$7,N$19,Beregning!$K$10) ->  | O29: =tryktab(Beregning!O29,$B29,O$23,Beregning!$K$7,O$19,Beregning!$K$10) -> 
B30: 45° vinkel | E30: mbar | F30: =tryktab(Beregning!F30,$B30,F$23,Beregning!$K$7,F$19,Beregning!$K$10) ->  | G30: =tryktab(Beregning!G30,$B30,G$23,Beregning!$K$7,G$19,Beregning!$K$10) ->  | H30: =tryktab(Beregning!H30,$B30,H$23,Beregning!$K$7,H$19,Beregning!$K$10) ->  | I30: =tryktab(Beregning!I30,$B30,I$23,Beregning!$K$7,I$19,Beregning!$K$10) ->  | J30: =tryktab(Beregning!J30,$B30,J$23,Beregning!$K$7,J$19,Beregning!$K$10) ->  | K30: =tryktab(Beregning!K30,$B30,K$23,Beregning!$K$7,K$19,Beregning!$K$10) ->  | L30: =tryktab(Beregning!L30,$B30,L$23,Beregning!$K$7,L$19,Beregning!$K$10) ->  | M30: =tryktab(Beregning!M30,$B30,M$23,Beregning!$K$7,M$19,Beregning!$K$10) ->  | N30: =tryktab(Beregning!N30,$B30,N$23,Beregning!$K$7,N$19,Beregning!$K$10) ->  | O30: =tryktab(Beregning!O30,$B30,O$23,Beregning!$K$7,O$19,Beregning!$K$10) -> 
B31: 90° bøjning | E31: mbar | F31: =tryktab(Beregning!F31,$B31,F$23,Beregning!$K$7,F$19,Beregning!$K$10) ->  | G31: =tryktab(Beregning!G31,$B31,G$23,Beregning!$K$7,G$19,Beregning!$K$10) ->  | H31: =tryktab(Beregning!H31,$B31,H$23,Beregning!$K$7,H$19,Beregning!$K$10) ->  | I31: =tryktab(Beregning!I31,$B31,I$23,Beregning!$K$7,I$19,Beregning!$K$10) ->  | J31: =tryktab(Beregning!J31,$B31,J$23,Beregning!$K$7,J$19,Beregning!$K$10) ->  | K31: =tryktab(Beregning!K31,$B31,K$23,Beregning!$K$7,K$19,Beregning!$K$10) ->  | L31: =tryktab(Beregning!L31,$B31,L$23,Beregning!$K$7,L$19,Beregning!$K$10) ->  | M31: =tryktab(Beregning!M31,$B31,M$23,Beregning!$K$7,M$19,Beregning!$K$10) ->  | N31: =tryktab(Beregning!N31,$B31,N$23,Beregning!$K$7,N$19,Beregning!$K$10) ->  | O31: =tryktab(Beregning!O31,$B31,O$23,Beregning!$K$7,O$19,Beregning!$K$10) -> 
B32: 45° bøjning | E32: mbar | F32: =tryktab(Beregning!F32,$B32,F$23,Beregning!$K$7,F$19,Beregning!$K$10) ->  | G32: =tryktab(Beregning!G32,$B32,G$23,Beregning!$K$7,G$19,Beregning!$K$10) ->  | H32: =tryktab(Beregning!H32,$B32,H$23,Beregning!$K$7,H$19,Beregning!$K$10) ->  | I32: =tryktab(Beregning!I32,$B32,I$23,Beregning!$K$7,I$19,Beregning!$K$10) ->  | J32: =tryktab(Beregning!J32,$B32,J$23,Beregning!$K$7,J$19,Beregning!$K$10) ->  | K32: =tryktab(Beregning!K32,$B32,K$23,Beregning!$K$7,K$19,Beregning!$K$10) ->  | L32: =tryktab(Beregning!L32,$B32,L$23,Beregning!$K$7,L$19,Beregning!$K$10) ->  | M32: =tryktab(Beregning!M32,$B32,M$23,Beregning!$K$7,M$19,Beregning!$K$10) ->  | N32: =tryktab(Beregning!N32,$B32,N$23,Beregning!$K$7,N$19,Beregning!$K$10) ->  | O32: =tryktab(Beregning!O32,$B32,O$23,Beregning!$K$7,O$19,Beregning!$K$10) -> 
B33: 90° T-stykke gennemgang | E33: mbar | F33: =tryktab(Beregning!F33,$B33,F$23,Beregning!$K$7,F$19,Beregning!$K$10) ->  | G33: =tryktab(Beregning!G33,$B33,G$23,Beregning!$K$7,G$19,Beregning!$K$10) ->  | H33: =tryktab(Beregning!H33,$B33,H$23,Beregning!$K$7,H$19,Beregning!$K$10) ->  | I33: =tryktab(Beregning!I33,$B33,I$23,Beregning!$K$7,I$19,Beregning!$K$10) ->  | J33: =tryktab(Beregning!J33,$B33,J$23,Beregning!$K$7,J$19,Beregning!$K$10) ->  | K33: =tryktab(Beregning!K33,$B33,K$23,Beregning!$K$7,K$19,Beregning!$K$10) ->  | L33: =tryktab(Beregning!L33,$B33,L$23,Beregning!$K$7,L$19,Beregning!$K$10) ->  | M33: =tryktab(Beregning!M33,$B33,M$23,Beregning!$K$7,M$19,Beregning!$K$10) ->  | N33: =tryktab(Beregning!N33,$B33,N$23,Beregning!$K$7,N$19,Beregning!$K$10) ->  | O33: =tryktab(Beregning!O33,$B33,O$23,Beregning!$K$7,O$19,Beregning!$K$10) -> 
B34: 90° T-stykke afbøjning | E34: mbar | F34: =tryktab(Beregning!F34,$B34,F$23,Beregning!$K$7,F$19,Beregning!$K$10) ->  | G34: =tryktab(Beregning!G34,$B34,G$23,Beregning!$K$7,G$19,Beregning!$K$10) ->  | H34: =tryktab(Beregning!H34,$B34,H$23,Beregning!$K$7,H$19,Beregning!$K$10) ->  | I34: =tryktab(Beregning!I34,$B34,I$23,Beregning!$K$7,I$19,Beregning!$K$10) ->  | J34: =tryktab(Beregning!J34,$B34,J$23,Beregning!$K$7,J$19,Beregning!$K$10) ->  | K34: =tryktab(Beregning!K34,$B34,K$23,Beregning!$K$7,K$19,Beregning!$K$10) ->  | L34: =tryktab(Beregning!L34,$B34,L$23,Beregning!$K$7,L$19,Beregning!$K$10) ->  | M34: =tryktab(Beregning!M34,$B34,M$23,Beregning!$K$7,M$19,Beregning!$K$10) ->  | N34: =tryktab(Beregning!N34,$B34,N$23,Beregning!$K$7,N$19,Beregning!$K$10) ->  | O34: =tryktab(Beregning!O34,$B34,O$23,Beregning!$K$7,O$19,Beregning!$K$10) -> 
B35: 90° rense-T | E35: mbar | F35: =tryktab(Beregning!F35,$B35,F$23,Beregning!$K$7,F$19,Beregning!$K$10) ->  | G35: =tryktab(Beregning!G35,$B35,G$23,Beregning!$K$7,G$19,Beregning!$K$10) ->  | H35: =tryktab(Beregning!H35,$B35,H$23,Beregning!$K$7,H$19,Beregning!$K$10) ->  | I35: =tryktab(Beregning!I35,$B35,I$23,Beregning!$K$7,I$19,Beregning!$K$10) ->  | J35: =tryktab(Beregning!J35,$B35,J$23,Beregning!$K$7,J$19,Beregning!$K$10) ->  | K35: =tryktab(Beregning!K35,$B35,K$23,Beregning!$K$7,K$19,Beregning!$K$10) ->  | L35: =tryktab(Beregning!L35,$B35,L$23,Beregning!$K$7,L$19,Beregning!$K$10) ->  | M35: =tryktab(Beregning!M35,$B35,M$23,Beregning!$K$7,M$19,Beregning!$K$10) ->  | N35: =tryktab(Beregning!N35,$B35,N$23,Beregning!$K$7,N$19,Beregning!$K$10) ->  | O35: =tryktab(Beregning!O35,$B35,O$23,Beregning!$K$7,O$19,Beregning!$K$10) -> 
B36: 90° T-stykke modstrøm | E36: mbar | F36: =tryktab(Beregning!F36,$B36,F$23,Beregning!$K$7,F$19,Beregning!$K$10) ->  | G36: =tryktab(Beregning!G36,$B36,G$23,Beregning!$K$7,G$19,Beregning!$K$10) ->  | H36: =tryktab(Beregning!H36,$B36,H$23,Beregning!$K$7,H$19,Beregning!$K$10) ->  | I36: =tryktab(Beregning!I36,$B36,I$23,Beregning!$K$7,I$19,Beregning!$K$10) ->  | J36: =tryktab(Beregning!J36,$B36,J$23,Beregning!$K$7,J$19,Beregning!$K$10) ->  | K36: =tryktab(Beregning!K36,$B36,K$23,Beregning!$K$7,K$19,Beregning!$K$10) ->  | L36: =tryktab(Beregning!L36,$B36,L$23,Beregning!$K$7,L$19,Beregning!$K$10) ->  | M36: =tryktab(Beregning!M36,$B36,M$23,Beregning!$K$7,M$19,Beregning!$K$10) ->  | N36: =tryktab(Beregning!N36,$B36,N$23,Beregning!$K$7,N$19,Beregning!$K$10) ->  | O36: =tryktab(Beregning!O36,$B36,O$23,Beregning!$K$7,O$19,Beregning!$K$10) -> 
B37: T-bøjning gennemgang | E37: mbar | F37: =tryktab(Beregning!F37,$B37,F$23,Beregning!$K$7,F$19,Beregning!$K$10) ->  | G37: =tryktab(Beregning!G37,$B37,G$23,Beregning!$K$7,G$19,Beregning!$K$10) ->  | H37: =tryktab(Beregning!H37,$B37,H$23,Beregning!$K$7,H$19,Beregning!$K$10) ->  | I37: =tryktab(Beregning!I37,$B37,I$23,Beregning!$K$7,I$19,Beregning!$K$10) ->  | J37: =tryktab(Beregning!J37,$B37,J$23,Beregning!$K$7,J$19,Beregning!$K$10) ->  | K37: =tryktab(Beregning!K37,$B37,K$23,Beregning!$K$7,K$19,Beregning!$K$10) ->  | L37: =tryktab(Beregning!L37,$B37,L$23,Beregning!$K$7,L$19,Beregning!$K$10) ->  | M37: =tryktab(Beregning!M37,$B37,M$23,Beregning!$K$7,M$19,Beregning!$K$10) ->  | N37: =tryktab(Beregning!N37,$B37,N$23,Beregning!$K$7,N$19,Beregning!$K$10) ->  | O37: =tryktab(Beregning!O37,$B37,O$23,Beregning!$K$7,O$19,Beregning!$K$10) -> 
B38: T-bøjning afbøjning | E38: mbar | F38: =tryktab(Beregning!F38,$B38,F$23,Beregning!$K$7,F$19,Beregning!$K$10) ->  | G38: =tryktab(Beregning!G38,$B38,G$23,Beregning!$K$7,G$19,Beregning!$K$10) ->  | H38: =tryktab(Beregning!H38,$B38,H$23,Beregning!$K$7,H$19,Beregning!$K$10) ->  | I38: =tryktab(Beregning!I38,$B38,I$23,Beregning!$K$7,I$19,Beregning!$K$10) ->  | J38: =tryktab(Beregning!J38,$B38,J$23,Beregning!$K$7,J$19,Beregning!$K$10) ->  | K38: =tryktab(Beregning!K38,$B38,K$23,Beregning!$K$7,K$19,Beregning!$K$10) ->  | L38: =tryktab(Beregning!L38,$B38,L$23,Beregning!$K$7,L$19,Beregning!$K$10) ->  | M38: =tryktab(Beregning!M38,$B38,M$23,Beregning!$K$7,M$19,Beregning!$K$10) ->  | N38: =tryktab(Beregning!N38,$B38,N$23,Beregning!$K$7,N$19,Beregning!$K$10) ->  | O38: =tryktab(Beregning!O38,$B38,O$23,Beregning!$K$7,O$19,Beregning!$K$10) -> 
B39: Rensebøjning | E39: mbar | F39: =tryktab(Beregning!F39,$B39,F$23,Beregning!$K$7,F$19,Beregning!$K$10) ->  | G39: =tryktab(Beregning!G39,$B39,G$23,Beregning!$K$7,G$19,Beregning!$K$10) ->  | H39: =tryktab(Beregning!H39,$B39,H$23,Beregning!$K$7,H$19,Beregning!$K$10) ->  | I39: =tryktab(Beregning!I39,$B39,I$23,Beregning!$K$7,I$19,Beregning!$K$10) ->  | J39: =tryktab(Beregning!J39,$B39,J$23,Beregning!$K$7,J$19,Beregning!$K$10) ->  | K39: =tryktab(Beregning!K39,$B39,K$23,Beregning!$K$7,K$19,Beregning!$K$10) ->  | L39: =tryktab(Beregning!L39,$B39,L$23,Beregning!$K$7,L$19,Beregning!$K$10) ->  | M39: =tryktab(Beregning!M39,$B39,M$23,Beregning!$K$7,M$19,Beregning!$K$10) ->  | N39: =tryktab(Beregning!N39,$B39,N$23,Beregning!$K$7,N$19,Beregning!$K$10) ->  | O39: =tryktab(Beregning!O39,$B39,O$23,Beregning!$K$7,O$19,Beregning!$K$10) -> 
B40: T-stykke modstrøm | E40: mbar | F40: =tryktab(Beregning!F40,$B40,F$23,Beregning!$K$7,F$19,Beregning!$K$10) ->  | G40: =tryktab(Beregning!G40,$B40,G$23,Beregning!$K$7,G$19,Beregning!$K$10) ->  | H40: =tryktab(Beregning!H40,$B40,H$23,Beregning!$K$7,H$19,Beregning!$K$10) ->  | I40: =tryktab(Beregning!I40,$B40,I$23,Beregning!$K$7,I$19,Beregning!$K$10) ->  | J40: =tryktab(Beregning!J40,$B40,J$23,Beregning!$K$7,J$19,Beregning!$K$10) ->  | K40: =tryktab(Beregning!K40,$B40,K$23,Beregning!$K$7,K$19,Beregning!$K$10) ->  | L40: =tryktab(Beregning!L40,$B40,L$23,Beregning!$K$7,L$19,Beregning!$K$10) ->  | M40: =tryktab(Beregning!M40,$B40,M$23,Beregning!$K$7,M$19,Beregning!$K$10) ->  | N40: =tryktab(Beregning!N40,$B40,N$23,Beregning!$K$7,N$19,Beregning!$K$10) ->  | O40: =tryktab(Beregning!O40,$B40,O$23,Beregning!$K$7,O$19,Beregning!$K$10) -> 
B41: 90° kryds gennemgang | E41: mbar | F41: =tryktab(Beregning!F41,$B41,F$23,Beregning!$K$7,F$19,Beregning!$K$10) ->  | G41: =tryktab(Beregning!G41,$B41,G$23,Beregning!$K$7,G$19,Beregning!$K$10) ->  | H41: =tryktab(Beregning!H41,$B41,H$23,Beregning!$K$7,H$19,Beregning!$K$10) ->  | I41: =tryktab(Beregning!I41,$B41,I$23,Beregning!$K$7,I$19,Beregning!$K$10) ->  | J41: =tryktab(Beregning!J41,$B41,J$23,Beregning!$K$7,J$19,Beregning!$K$10) ->  | K41: =tryktab(Beregning!K41,$B41,K$23,Beregning!$K$7,K$19,Beregning!$K$10) ->  | L41: =tryktab(Beregning!L41,$B41,L$23,Beregning!$K$7,L$19,Beregning!$K$10) ->  | M41: =tryktab(Beregning!M41,$B41,M$23,Beregning!$K$7,M$19,Beregning!$K$10) ->  | N41: =tryktab(Beregning!N41,$B41,N$23,Beregning!$K$7,N$19,Beregning!$K$10) ->  | O41: =tryktab(Beregning!O41,$B41,O$23,Beregning!$K$7,O$19,Beregning!$K$10) -> 
B42: 90° kryds afbøjning | E42: mbar | F42: =tryktab(Beregning!F42,$B42,F$23,Beregning!$K$7,F$19,Beregning!$K$10) ->  | G42: =tryktab(Beregning!G42,$B42,G$23,Beregning!$K$7,G$19,Beregning!$K$10) ->  | H42: =tryktab(Beregning!H42,$B42,H$23,Beregning!$K$7,H$19,Beregning!$K$10) ->  | I42: =tryktab(Beregning!I42,$B42,I$23,Beregning!$K$7,I$19,Beregning!$K$10) ->  | J42: =tryktab(Beregning!J42,$B42,J$23,Beregning!$K$7,J$19,Beregning!$K$10) ->  | K42: =tryktab(Beregning!K42,$B42,K$23,Beregning!$K$7,K$19,Beregning!$K$10) ->  | L42: =tryktab(Beregning!L42,$B42,L$23,Beregning!$K$7,L$19,Beregning!$K$10) ->  | M42: =tryktab(Beregning!M42,$B42,M$23,Beregning!$K$7,M$19,Beregning!$K$10) ->  | N42: =tryktab(Beregning!N42,$B42,N$23,Beregning!$K$7,N$19,Beregning!$K$10) ->  | O42: =tryktab(Beregning!O42,$B42,O$23,Beregning!$K$7,O$19,Beregning!$K$10) -> 
B43: 90° rensekryds gennemgang | E43: mbar | F43: =tryktab(Beregning!F43,$B43,F$23,Beregning!$K$7,F$19,Beregning!$K$10) ->  | G43: =tryktab(Beregning!G43,$B43,G$23,Beregning!$K$7,G$19,Beregning!$K$10) ->  | H43: =tryktab(Beregning!H43,$B43,H$23,Beregning!$K$7,H$19,Beregning!$K$10) ->  | I43: =tryktab(Beregning!I43,$B43,I$23,Beregning!$K$7,I$19,Beregning!$K$10) ->  | J43: =tryktab(Beregning!J43,$B43,J$23,Beregning!$K$7,J$19,Beregning!$K$10) ->  | K43: =tryktab(Beregning!K43,$B43,K$23,Beregning!$K$7,K$19,Beregning!$K$10) ->  | L43: =tryktab(Beregning!L43,$B43,L$23,Beregning!$K$7,L$19,Beregning!$K$10) ->  | M43: =tryktab(Beregning!M43,$B43,M$23,Beregning!$K$7,M$19,Beregning!$K$10) ->  | N43: =tryktab(Beregning!N43,$B43,N$23,Beregning!$K$7,N$19,Beregning!$K$10) ->  | O43: =tryktab(Beregning!O43,$B43,O$23,Beregning!$K$7,O$19,Beregning!$K$10) -> 
B44: 90° rensekryds afbøjning | E44: mbar | F44: =tryktab(Beregning!F44,$B44,F$23,Beregning!$K$7,F$19,Beregning!$K$10) ->  | G44: =tryktab(Beregning!G44,$B44,G$23,Beregning!$K$7,G$19,Beregning!$K$10) ->  | H44: =tryktab(Beregning!H44,$B44,H$23,Beregning!$K$7,H$19,Beregning!$K$10) ->  | I44: =tryktab(Beregning!I44,$B44,I$23,Beregning!$K$7,I$19,Beregning!$K$10) ->  | J44: =tryktab(Beregning!J44,$B44,J$23,Beregning!$K$7,J$19,Beregning!$K$10) ->  | K44: =tryktab(Beregning!K44,$B44,K$23,Beregning!$K$7,K$19,Beregning!$K$10) ->  | L44: =tryktab(Beregning!L44,$B44,L$23,Beregning!$K$7,L$19,Beregning!$K$10) ->  | M44: =tryktab(Beregning!M44,$B44,M$23,Beregning!$K$7,M$19,Beregning!$K$10) ->  | N44: =tryktab(Beregning!N44,$B44,N$23,Beregning!$K$7,N$19,Beregning!$K$10) ->  | O44: =tryktab(Beregning!O44,$B44,O$23,Beregning!$K$7,O$19,Beregning!$K$10) -> 
B45: Hane (kuglehane) | E45: mbar | F45: =tryktab(Beregning!F45,$B45,F$23,Beregning!$K$7,F$19,Beregning!$K$10) ->  | G45: =tryktab(Beregning!G45,$B45,G$23,Beregning!$K$7,G$19,Beregning!$K$10) ->  | H45: =tryktab(Beregning!H45,$B45,H$23,Beregning!$K$7,H$19,Beregning!$K$10) ->  | I45: =tryktab(Beregning!I45,$B45,I$23,Beregning!$K$7,I$19,Beregning!$K$10) ->  | J45: =tryktab(Beregning!J45,$B45,J$23,Beregning!$K$7,J$19,Beregning!$K$10) ->  | K45: =tryktab(Beregning!K45,$B45,K$23,Beregning!$K$7,K$19,Beregning!$K$10) ->  | L45: =tryktab(Beregning!L45,$B45,L$23,Beregning!$K$7,L$19,Beregning!$K$10) ->  | M45: =tryktab(Beregning!M45,$B45,M$23,Beregning!$K$7,M$19,Beregning!$K$10) ->  | N45: =tryktab(Beregning!N45,$B45,N$23,Beregning!$K$7,N$19,Beregning!$K$10) ->  | O45: =tryktab(Beregning!O45,$B45,O$23,Beregning!$K$7,O$19,Beregning!$K$10) -> 
B46: Vinkelhane | E46: mbar | F46: =tryktab(Beregning!F46,$B46,F$23,Beregning!$K$7,F$19,Beregning!$K$10) ->  | G46: =tryktab(Beregning!G46,$B46,G$23,Beregning!$K$7,G$19,Beregning!$K$10) ->  | H46: =tryktab(Beregning!H46,$B46,H$23,Beregning!$K$7,H$19,Beregning!$K$10) ->  | I46: =tryktab(Beregning!I46,$B46,I$23,Beregning!$K$7,I$19,Beregning!$K$10) ->  | J46: =tryktab(Beregning!J46,$B46,J$23,Beregning!$K$7,J$19,Beregning!$K$10) ->  | K46: =tryktab(Beregning!K46,$B46,K$23,Beregning!$K$7,K$19,Beregning!$K$10) ->  | L46: =tryktab(Beregning!L46,$B46,L$23,Beregning!$K$7,L$19,Beregning!$K$10) ->  | M46: =tryktab(Beregning!M46,$B46,M$23,Beregning!$K$7,M$19,Beregning!$K$10) ->  | N46: =tryktab(Beregning!N46,$B46,N$23,Beregning!$K$7,N$19,Beregning!$K$10) ->  | O46: =tryktab(Beregning!O46,$B46,O$23,Beregning!$K$7,O$19,Beregning!$K$10) -> 
B47: Ventil | E47: mbar | F47: =tryktab(Beregning!F47,$B47,F$23,Beregning!$K$7,F$19,Beregning!$K$10) ->  | G47: =tryktab(Beregning!G47,$B47,G$23,Beregning!$K$7,G$19,Beregning!$K$10) ->  | H47: =tryktab(Beregning!H47,$B47,H$23,Beregning!$K$7,H$19,Beregning!$K$10) ->  | I47: =tryktab(Beregning!I47,$B47,I$23,Beregning!$K$7,I$19,Beregning!$K$10) ->  | J47: =tryktab(Beregning!J47,$B47,J$23,Beregning!$K$7,J$19,Beregning!$K$10) ->  | K47: =tryktab(Beregning!K47,$B47,K$23,Beregning!$K$7,K$19,Beregning!$K$10) ->  | L47: =tryktab(Beregning!L47,$B47,L$23,Beregning!$K$7,L$19,Beregning!$K$10) ->  | M47: =tryktab(Beregning!M47,$B47,M$23,Beregning!$K$7,M$19,Beregning!$K$10) ->  | N47: =tryktab(Beregning!N47,$B47,N$23,Beregning!$K$7,N$19,Beregning!$K$10) ->  | O47: =tryktab(Beregning!O47,$B47,O$23,Beregning!$K$7,O$19,Beregning!$K$10) -> 
B48: Tryktab i komponenter | F48: =IFERROR(IF(SUM(F27:F47)>0,SUM(F27:F47),""),"") ->  | G48: =IFERROR(IF(SUM(G27:G47)>0,SUM(G27:G47),""),"") -> 
B49: Samlet tryktab | F49: =SUM(F21,F25,F48) -> 0 | G49: =SUM(G21,G25,G48) -> 0 | H49: 0 | I49: 0 | J49: 0 | K49: 0 | L49: 0 | M49: 0 | N49: 0 | O49: 0

Sheet Gasser (hidden)
B2: kilde | C2: år 2017, energinet.dk | D2: notat | E2: notat | F2: email Jørgen Jep. +beregning | G2: tkv | H2: notat
B4: Egenskab/Navn | C4: Naturgas | D4: Importeret naturgas | E4: Naturgas, min | F4: Bygas (NG/luft) | G4: Biogas, ikke opgraderet | H4: Biogas, opgraderet
B5: Øvre brændværdi [kWh/m3n] | C5: 12.178 | D5: 11.23 | E5: 10.69 | F5: 6.310654191 | G5: 7.18992633 | H5: 11
B6: Massefylde [kg/m3n] | C6: 0.8261 | D6: 0.743 | E6: 0.71 | F6: 1.076276866 | G6: 1.157936388 | H6: 0.722
B7: Relativ massefylde, [-] | C7: 0.6389 | D7: 0.574 | E7: 0.555 | H7: 0.558
B8: *Luftens massefylde (0 hr. C),[kg/m3] | C8: =C6/C7 -> 1.2930036 | D8: =D6/D7 -> 1.294425087 | E8: =E6/E7 -> 1.279279279 | H8: =H6/H7 -> 1.29390681
B9: Trykændring [mbar/m] | C9: =9.81*(C8-C6)*1/100 -> 0.04580324315 | D9: =9.81*(D8-D6)*1/100 -> 0.05409480105 | E9: =9.81*(E8-E6)*1/100 -> 0.0558462973 | F9: 0.02047573945 | G9: 0.01246494032 | H9: =9.81*(H8-H6)*1/100 -> 0.05610405806
B11: Kommentar | D11: Kilde: Energinet´s notat "Fremtidige naturgaskvaliteter -Faktablad", februar 2017 | E11: Historisk minimal brændværdi
B14: Gasnavne
B15: Naturgas
B16: Importeret naturgas
B17: Naturgas, min
B18: Bygas (NG/luft)
B19: Biogas, ikke opgraderet
B20: Biogas, opgraderet
M21: *
M22: (luft, O0C) | N22: Massefylde [kg/m3n] | Q22: 1.29 | S22: (Danvak tabellen, tør luft) | V22: eller ud fra rel. density:
M23: Højdetrykændring (mbar/m) | Q23: =(Q22-C6)*9.81/100*1 -> 0.04550859

Sheet Rørtyper (hidden)
C2: Øvre værdier fra tabel 9A-1 og A.08.01 (worst case)
C4: Rørtype | D4: Ækvivalent sandruhed K
C5: Brugerdefineret | D5: 0
C6: Kobberrør | D6: 0.005
C7: PE-rør (plastrør) | D7: 0.01
C8: Trukne stålrør, nye | D8: 0.05
C9: Svejste stålrør, nye | D9: 0.15
C10: Svejste stålrør med afsætning | D10: 3
C11: Stålrør med epoxy-coating | D11: 0.03
C12: Sømløse stålrør | D12: 0.1
C13: Sandblæste stålrør | D13: 0.03

Sheet Versioner (hidden)
B4: Version | C4: Ændringer
B6: 1.0.0 | C6: Første publicerede version
B8: 1.1.0 | C8: Tilføjelse af gasserne: "Importeret naturgas", "Naturgas, min" og "Biogas, opgraderet"
B10: 1.1.1 | C10: Implementering af ekstra vejledning fra IMO
